bitfinex/quotes_BTCUSD_20250114
["timestamp","ask_amount","ask_price","bid_price","bid_amount"]
[1736882230946,0.96038539,96994.0,96993.0,4.7e-07]
[1736882231140,0.96938539,96994.0,96993.0,4.7e-07]
[1736882231467,0.96038539,96994.0,96993.0,4.7e-07]
[1736882231872,0.96938539,96994.0,96993.0,4.7e-07]
[1736882232277,0.97638539,96994.0,96993.0,4.7e-07]
[1736882235792,0.97638539,96994.0,96993.0,0.00179345]
[1736882237775,0.55633402,96988.0,96987.0,1e-07]
[1736882237887,0.37312302,96982.0,96981.0,9.6e-07]
[1736882238094,0.47734994,96982.0,96981.0,9.6e-07]
[1736882238321,0.47734994,96982.0,96981.0,0.00013898]
[1736882239434,0.48234994,96982.0,96981.0,0.00013898]
[1736882240174,0.48234994,96982.0,96981.0,9.8e-07]
[1736882240424,0.66327686,96982.0,96981.0,9.8e-07]
[1736882240877,0.67380262,96982.0,96981.0,9.8e-07]
[1736882241081,0.68280262,96982.0,96981.0,9.8e-07]
[1736882241340,0.5018757,96982.0,96981.0,9.8e-07]
[1736882241512,0.4028357,96982.0,96981.0,9.8e-07]
[1736882241728,0.70283915,96982.0,96981.0,9.8e-07]
[1736882242086,0.69483915,96982.0,96981.0,9.8e-07]
[1736882242490,0.68283915,96982.0,96981.0,9.8e-07]
[1736882242692,0.78706607,96982.0,96981.0,9.8e-07]
[1736882242897,0.67683915,96982.0,96981.0,9.8e-07]
[1736882243281,0.68383915,96982.0,96981.0,9.8e-07]
[1736882243712,0.69283915,96982.0,96981.0,9.8e-07]
[1736882244069,0.68383915,96982.0,96981.0,9.8e-07]
[1736882244183,0.32787915,96982.0,96981.0,9.8e-07]
[1736882244393,0.31983915,96982.0,96981.0,9.8e-07]
[1736882244600,0.33231339,96982.0,96981.0,9.8e-07]
[1736882245006,0.56140993,96982.0,96981.0,9.8e-07]
[1736882245203,0.56840993,96982.0,96981.0,9.8e-07]
[1736882245410,0.45931339,96982.0,96981.0,9.8e-07]
[1736882245635,0.44435339,96982.0,96981.0,0.07700098]
[1736882245841,0.44331339,96982.0,96981.0,0.07700098]
[1736882246043,0.44831339,96982.0,96981.0,0.07700098]
[1736882247014,0.47131339,96982.0,96981.0,0.07700098]
[1736882247188,0.58454031,96982.0,96981.0,0.07785528]
[1736882247399,0.57554031,96982.0,96981.0,0.07785528]
[1736882247598,0.57054031,96982.0,96981.0,0.07785528]
[1736882247758,0.57454031,96982.0,96981.0,0.07785528]
[1736882247960,0.57854031,96982.0,96981.0,0.07785528]
[1736882248484,0.57854031,96982.0,96981.0,0.00085528]
[1736882248485,0.57454031,96982.0,96981.0,0.00085528]
[1736882248892,0.57754031,96982.0,96981.0,0.00085528]
[1736882250116,0.45031339,96982.0,96981.0,0.00085528]
[1736882250316,0.45031339,96982.0,96981.0,0.12815528]
[1736882250317,0.29435339,96982.0,96981.0,0.12815528]
[1736882250517,0.19000345,96982.0,96981.0,0.12815528]
[1736882250879,0.19000345,96982.0,96981.0,0.33438028]
[1736882251063,0.19000345,96982.0,96981.0,0.12815528]
[1736882251473,0.18600345,96982.0,96981.0,0.12815528]
[1736882251607,0.18300345,96982.0,96981.0,0.12815528]
[1736882251823,0.19000345,96982.0,96981.0,0.12815528]
[1736882252487,0.18700345,96982.0,96981.0,0.12815528]
[1736882252694,0.29235339,96982.0,96981.0,0.12815528]
[1736882252897,0.31105374,96982.0,96981.0,0.12815528]
[1736882253101,0.29235339,96982.0,96981.0,0.12815528]
[1736882253300,0.29235339,96982.0,96981.0,0.12915528]
[1736882253706,0.28835339,96982.0,96981.0,0.12815528]
[1736882253860,0.28735339,96982.0,96981.0,0.12815528]
[1736882254071,0.28835339,96982.0,96981.0,0.12815528]
[1736882254594,0.29235339,96982.0,96981.0,0.12815528]
[1736882254911,0.28735339,96982.0,96981.0,0.12815528]
[1736882255066,0.29135339,96982.0,96981.0,0.12815528]
[1736882255274,0.29835339,96982.0,96981.0,0.12815528]
[1736882256951,0.47135339,96982.0,96981.0,0.00085528]
[1736882257150,0.57558031,96982.0,96981.0,0.00085528]
[1736882258126,0.58614454,96982.0,96981.0,0.00085528]
[1736882258348,0.78614454,96982.0,96981.0,0.00085528]
[1736882259375,0.78214454,96982.0,96981.0,0.00085528]
[1736882259574,0.78714454,96982.0,96981.0,0.00085528]
[1736882259750,0.78193711,96982.0,96981.0,0.00085528]
[1736882260177,0.79093711,96982.0,96981.0,2.8e-07]
[1736882260384,0.78193711,96982.0,96981.0,2.8e-07]
[1736882260791,0.78593711,96982.0,96981.0,2.8e-07]
[1736882261132,0.78533711,96982.0,96981.0,2.8e-07]
[1736882261338,0.88488398,96982.0,96981.0,2.8e-07]
[1736882261668,0.87788398,96982.0,96981.0,2.8e-07]
[1736882262093,0.88488398,96982.0,96981.0,2.8e-07]
[1736882262838,0.78333711,96982.0,96981.0,2.8e-07]
[1736882263115,0.79233711,96982.0,96981.0,2.8e-07]
[1736882264769,0.97719276,96982.0,96981.0,2.8e-07]
[1736882265217,1.05849276,96982.0,96981.0,2.8e-07]
[1736882265642,0.87363711,96982.0,96981.0,2.8e-07]
[1736882266983,0.86463711,96982.0,96981.0,2.8e-07]
[1736882267249,0.87363711,96982.0,96981.0,2.8e-07]
[1736882267457,0.86463711,96982.0,96981.0,2.8e-07]
[1736882267604,0.76179447,96961.0,96960.0,0.00179256]
[1736882267828,0.88672861,96961.0,96960.0,0.00179256]
[1736882269161,0.91318422,96961.0,96960.0,0.00179256]
[1736882269714,0.92218422,96961.0,96960.0,0.00179256]
[1736882269941,1.06108848,96961.0,96960.0,0.00179256]
[1736882270144,1.05208848,96961.0,96960.0,0.00179256]
[1736882270318,1.06108848,96961.0,96960.0,0.00179256]
[1736882270669,1.05508848,96961.0,96960.0,0.00179256]
[1736882270967,0.94734126,96961.0,96960.0,0.00179256]
[1736882271379,0.81891205,96961.0,96960.0,0.00179256]
[1736882272814,0.91150198,96961.0,96960.0,0.00179256]
[1736882273678,0.81891205,96961.0,96960.0,0.00179256]
[1736882275358,0.81295205,96961.0,96960.0,0.00179256]
[1736882275566,0.80268336,96961.0,96960.0,0.08179256]
[1736882275997,0.90268336,96961.0,96960.0,0.08179256]
[1736882276472,0.69249644,96961.0,96960.0,0.08179256]
[1736882276687,0.69845644,96961.0,96960.0,0.08179256]
[1736882277772,0.68245644,96961.0,96960.0,0.08179256]
[1736882277939,0.69845644,96961.0,96960.0,0.08179256]
[1736882278152,0.65902139,96961.0,96960.0,0.12769256]
[1736882278355,0.66498139,96961.0,96960.0,0.12769256]
[1736882278579,0.68798139,96961.0,96960.0,0.12769256]
[1736882279249,0.77620831,96961.0,96960.0,0.12769256]
[1736882279479,0.78120831,96961.0,96960.0,0.12769256]
[1736882279717,0.79020831,96961.0,96960.0,0.12769256]
[1736882279857,0.68598139,96961.0,96960.0,0.12769256]
[1736882280297,0.68002139,96961.0,96960.0,0.12769256]
[1736882280504,0.68598139,96961.0,96960.0,0.12769256]
[1736882280703,0.66298139,96961.0,96960.0,0.12769256]
[1736882281923,0.30075339,96961.0,96960.0,0.12769256]
[1736882282143,0.19640345,96961.0,96960.0,0.12769256]
[1736882282725,0.06830345,96961.0,96960.0,0.12769256]
[1736882283308,0.05930345,96961.0,96960.0,0.12769256]
[1736882283505,0.05930345,96961.0,96960.0,0.13069256]
[1736882283766,0.005,96961.0,96960.0,0.13069256]
[1736882283963,0.00596,96981.0,96960.0,0.13069256]
[1736882283964,0.06026345,96981.0,96966.0,0.0459]
[1736882284200,0.00596,96980.0,96970.0,0.12241408]
[1736882287125,0.00179257,96982.0,96981.0,0.12483093]
[1736882287467,0.00179403,96994.0,96991.0,0.206204]
[1736882287682,0.00194238,96994.0,96993.0,0.2841]
[1736882287899,0.00194238,96994.0,96993.0,0.33]
[1736882288305,0.05430345,97022.0,96994.0,0.1238]
[1736882288516,0.05430345,97022.0,96993.0,0.10422692]
[1736882288517,0.05430345,97022.0,97016.0,0.1238]
[1736882289845,0.05430345,97022.0,97017.0,0.206149]
[1736882290062,0.05430345,97022.0,97016.0,0.1238]
[1736882290371,0.05530345,97022.0,97016.0,0.1238]
[1736882290573,0.05530345,97022.0,97016.0,0.329951]
[1736882290867,0.05430345,97022.0,97016.0,0.329951]
[1736882291274,0.05430345,97022.0,97016.0,0.1238]
[1736882292082,0.05430345,97022.0,97017.0,0.003]
[1736882292997,0.05430345,97022.0,97016.0,0.1238]
[1736882293173,0.05430345,97022.0,97017.0,0.001]
[1736882293887,0.05430345,97022.0,97017.0,0.004]
[1736882294500,0.05430345,97022.0,97017.0,0.003]
[1736882294501,0.04430345,97022.0,97017.0,0.003]
[1736882295264,0.04609644,97022.0,97017.0,0.003]
[1736882295689,0.00012302,97020.0,97017.0,0.004]
[1736882296598,0.00012302,97020.0,97016.0,0.1238]
[1736882296599,0.06225751,97022.0,97016.0,0.1238]
[1736882297006,0.06225751,97022.0,97017.0,0.003]
[1736882297610,0.06225751,97022.0,97016.0,0.1238]
[1736882297812,0.06225751,97022.0,97017.0,0.001]
[1736882298381,0.06225751,97022.0,97016.0,0.1238]
[1736882298583,0.06225751,97022.0,97017.0,0.001]
[1736882299182,0.06225751,97022.0,97016.0,0.1238]
[1736882299538,0.06225751,97022.0,97016.0,0.1278]
[1736882299946,0.06225751,97022.0,97016.0,0.1248]
[1736882300257,0.06225751,97022.0,97017.0,0.003]
[1736882300590,0.06225751,97022.0,97017.0,0.206149]
[1736882301584,0.06225751,97022.0,97017.0,0.207149]
[1736882301993,0.06225751,97022.0,97017.0,0.001]
[1736882302855,0.06225751,97022.0,97017.0,0.207148]
[1736882303064,0.06225751,97022.0,97017.0,0.210148]
[1736882303270,0.06225751,97022.0,97017.0,0.004]
[1736882306082,0.06225751,97022.0,97017.0,0.210148]
[1736882307526,0.06225751,97022.0,97017.0,0.2110012]
[1736882310570,0.01795406,97022.0,97019.0,0.2071747]
[1736882310747,0.00179299,97022.0,97021.0,0.28904]
[1736882310946,0.00179299,97022.0,97021.0,0.33644]
[1736882311150,0.00179299,97022.0,97021.0,0.48644]
[1736882311368,0.00179299,97022.0,97021.0,0.69066692]
[1736882311590,0.00179299,97022.0,97021.0,0.72144958]
[1736882311805,0.00179299,97022.0,97021.0,0.72244958]
[1736882312348,0.00179299,97022.0,97021.0,0.73202118]
[1736882313295,0.00179299,97022.0,97021.0,0.73102118]
[1736882313538,0.00279299,97022.0,97021.0,0.74202118]
[1736882315255,0.00179299,97022.0,97021.0,0.73402118]
[1736882316495,0.00179299,97022.0,97021.0,0.73102118]
[1736882316760,0.00179299,97022.0,97021.0,0.73402118]
[1736882317080,0.00179299,97022.0,97021.0,0.73102118]
[1736882317537,0.00179299,97022.0,97021.0,0.73502118]
[1736882317844,0.00279299,97022.0,97021.0,0.74302118]
[1736882318055,0.00179299,97022.0,97021.0,0.73502118]
[1736882318354,0.00179299,97022.0,97021.0,0.77592576]
[1736882319202,0.00179299,97022.0,97021.0,0.77677896]
[1736882320106,0.00179299,97022.0,97021.0,0.67677896]
[1736882320767,0.00179299,97022.0,97021.0,0.77677896]
[1736882321077,0.00179299,97022.0,97021.0,0.67677896]
[1736882322367,0.00179299,97022.0,97021.0,0.65656448]
[1736882322570,0.00179299,97022.0,97021.0,0.40233756]
[1736882324903,0.00179299,97022.0,97021.0,0.39276596]
[1736882325510,0.00179299,97022.0,97021.0,0.59686986]
[1736882326051,0.00179299,97022.0,97021.0,0.73432548]
[1736882326227,0.00179299,97022.0,97021.0,0.8385524]
[1736882326929,0.00179299,97022.0,97021.0,0.70109678]
[1736882328006,9.9e-07,97022.0,97021.0,0.95109678]
[1736882328234,9.9e-07,97022.0,97021.0,0.97409678]
[1736882328666,3.3e-07,97035.0,97034.0,0.68438998]
[1736882328829,3.3e-07,97035.0,97034.0,0.71629456]
[1736882329036,3.3e-07,97035.0,97034.0,0.9220957]
[1736882330290,3.3e-07,97035.0,97034.0,0.96533597]
[1736882330507,3.3e-07,97035.0,97034.0,0.96933597]
[1736882331290,0.00100033,97035.0,97034.0,0.97633597]
[1736882331730,3.3e-07,97035.0,97034.0,0.96933597]
[1736882331903,3.3e-07,97035.0,97034.0,0.94633597]
[1736882332205,0.00100033,97035.0,97034.0,0.95533597]
[1736882333184,3.3e-07,97035.0,97034.0,0.95533597]
[1736882333808,3.3e-07,97035.0,97034.0,0.96577213]
[1736882334163,3.3e-07,97035.0,97034.0,0.98877213]
[1736882334351,0.0778,97081.0,97058.0,0.206062]
[1736882334573,0.00097642,97079.0,97058.0,0.25339242]
[1736882334782,0.00100216,97059.0,97058.0,0.25236232]
[1736882335908,0.00100216,97059.0,97058.0,0.25336232]
[1736882338255,0.00100216,97059.0,97058.0,0.48426232]
[1736882339552,0.00100216,97059.0,97058.0,0.68836622]
[1736882339767,0.00100216,97059.0,97058.0,0.69036622]
[1736882340377,0.00100216,97059.0,97058.0,0.48626232]
[1736882340580,0.00100216,97059.0,97058.0,0.48526232]
[1736882340927,0.00200216,97059.0,97058.0,0.41136232]
[1736882342568,0.00200216,97059.0,97058.0,0.215062]
[1736882343752,0.00200216,97059.0,97058.0,0.22521403]
[1736882349028,0.00200216,97059.0,97058.0,0.009]
[1736882349250,0.00212518,97059.0,97058.0,0.009]
[1736882349456,0.1063521,97059.0,97058.0,0.009]
[1736882349698,0.24085781,97059.0,97058.0,0.009]
[1736882349927,0.42525555,97059.0,97058.0,0.009]
[1736882350377,0.15,97056.0,97044.0,0.09193256]
[1736882350609,0.12230345,97044.0,97029.0,0.206123]
[1736882350859,0.10422692,97043.0,97029.0,0.206123]
[1736882351108,0.00012302,97034.0,97022.0,0.206138]
[1736882351318,0.00012302,97034.0,97026.0,0.20613]
[1736882351727,0.00012302,97034.0,97022.0,0.206138]
[1736882351939,0.00012302,97028.0,97021.0,0.0008532]
[1736882352323,0.00012302,97028.0,97021.0,0.2069932]
[1736882353350,0.0012715,97028.0,97021.0,0.2069932]
[1736882353610,0.0012715,97028.0,97021.0,0.0008532]
[1736882354369,0.0022715,97028.0,97021.0,0.0008532]
[1736882354606,0.0022715,97028.0,97021.0,0.2069922]
[1736882356488,0.0022715,97028.0,97021.0,0.0008532]
[1736882356692,0.2083985,97028.0,97021.0,0.0008532]
[1736882356902,0.08252302,97022.0,97021.0,0.0008532]
[1736882357657,0.39288794,97022.0,97021.0,0.0008532]
[1736882357952,0.18674994,97022.0,97021.0,0.0028532]
[1736882358126,0.39288794,97022.0,97021.0,0.0028532]
[1736882359744,0.39488794,97022.0,97021.0,0.0028532]
[1736882360770,0.39488794,97022.0,97021.0,0.0008532]
[1736882360944,0.39588794,97022.0,97021.0,0.0008532]
[1736882361357,0.44019139,97022.0,97021.0,0.0008532]
[1736882361532,0.44419139,97022.0,97021.0,0.0008532]
[1736882369222,0.61719139,97022.0,97021.0,0.0008532]
[1736882369421,0.72141831,97022.0,97021.0,0.0008532]
[1736882369663,0.76901831,97022.0,97021.0,0.0008532]
[1736882370086,0.96901831,97022.0,97021.0,0.0008532]
[1736882370306,0.70927002,97018.0,97017.0,0.0008532]
[1736882370520,0.81945694,97018.0,97017.0,0.0008532]
[1736882370670,0.83420416,97018.0,97017.0,0.0008532]
[1736882371468,0.84320416,97018.0,97017.0,0.0018532]
[1736882371923,0.84920416,97018.0,97017.0,0.0028532]
[1736882373095,0.85948452,97018.0,97017.0,0.0028532]
[1736882373489,0.90378797,97018.0,97017.0,0.0028532]
[1736882373939,0.00012302,96980.0,96970.0,0.206248]
[1736882374136,0.00012302,96980.0,96970.0,0.12241408]
[1736882374543,0.00012302,96980.0,96971.0,0.206247]
[1736882375170,0.00012302,96980.0,96971.0,0.20674253]
[1736882375328,0.00012302,96980.0,96971.0,0.00049553]
[1736882377548,0.00012302,96980.0,96971.0,0.00134873]
[1736882378163,0.00012302,96980.0,96971.0,0.00334873]
[1736882378362,0.00112302,96980.0,96971.0,0.00134873]
[1736882378754,0.023,96979.0,96972.0,0.206245]
[1736882379339,0.023,96979.0,96971.0,0.00134873]
[1736882379546,0.023,96979.0,96972.0,0.206245]
[1736882380123,0.023,96979.0,96971.0,0.00134873]
[1736882380461,0.00012302,96978.0,96971.0,0.00134873]
[1736882381607,0.00012302,96975.0,96971.0,0.00134873]
[1736882381985,0.00012302,96972.0,96971.0,0.00134873]
[1736882382158,0.17165339,96972.0,96971.0,0.00134873]
[1736882383032,0.17165339,96972.0,96971.0,0.00334873]
[1736882384092,0.17165339,96972.0,96971.0,0.00134873]
[1736882384500,0.17265339,96972.0,96971.0,0.00134873]
[1736882385323,0.17365339,96972.0,96971.0,0.00134873]
[1736882385475,0.19924873,96972.0,96971.0,0.00134873]
[1736882385683,0.24684873,96972.0,96971.0,0.00134873]
[1736882387324,0.22125339,96972.0,96971.0,0.00134873]
[1736882387931,0.15065339,96972.0,96971.0,0.00134873]
[1736882388779,0.17365339,96972.0,96971.0,0.00134873]
[1736882388924,0.04630345,96972.0,96971.0,0.00134873]
[1736882394647,0.04430345,96972.0,96971.0,0.00134873]
[1736882394847,0.04530345,96972.0,96971.0,0.00134873]
[1736882395050,0.04630345,96972.0,96971.0,0.00134873]
[1736882395616,0.04530345,96972.0,96971.0,0.00134873]
[1736882395830,0.04430345,96972.0,96971.0,0.00134873]
[1736882396160,0.04530345,96972.0,96971.0,0.00134873]
[1736882397285,0.04630345,96972.0,96971.0,0.00134873]
[1736882398645,0.04530345,96972.0,96971.0,0.00134873]
[1736882398847,0.04430345,96972.0,96971.0,0.00134873]
[1736882399195,0.04430345,96972.0,96971.0,0.00234873]
[1736882399606,0.04430345,96997.0,96971.0,0.30007818]
[1736882399831,0.01032846,97007.0,96995.0,0.206194]
[1736882399832,0.00012302,97004.0,96995.0,0.206194]
[1736882400282,0.00012302,97004.0,96990.0,0.00103091]
[1736882400500,0.00012302,97004.0,96992.0,0.206201]
[1736882400655,0.00012302,97004.0,96995.0,0.206194]
[1736882400881,0.00012302,97004.0,96990.0,0.00103091]
[1736882401142,0.00012302,97004.0,96991.0,0.206204]
[1736882401375,0.008,96997.0,96991.0,0.206204]
[1736882401698,0.004,96997.0,96991.0,0.206204]
[1736882401916,0.00312302,97004.0,96991.0,0.206204]
[1736882402106,0.023,97003.0,96991.0,0.206204]
[1736882402356,0.023,97003.0,96994.0,0.206196]
[1736882402764,0.023,97003.0,96997.0,0.20619]
[1736882402940,0.023,97003.0,96994.0,0.206196]
[1736882403348,0.023,97003.0,96991.0,0.206203]
[1736882403349,0.023,97003.0,96998.0,0.206189]
[1736882403595,0.023,97003.0,96993.0,0.2062]
[1736882404010,0.023,97003.0,96996.0,0.206192]
[1736882404226,0.023,97003.0,96993.0,0.2062]
[1736882404439,0.04536134,97003.0,96990.0,0.2164403]
[1736882404867,0.04736134,97003.0,96990.0,0.2164403]
[1736882405086,0.04536134,97003.0,96990.0,0.2164403]
[1736882405294,0.04736134,97003.0,96990.0,0.2164403]
[1736882405608,0.04536134,97003.0,96990.0,0.2164403]
[1736882405818,0.00012302,96996.0,96982.0,0.0753]
[1736882406041,0.00012302,96995.0,96981.0,0.206224]
[1736882406248,0.00012302,96995.0,96981.0,0.21662494]
[1736882406872,0.00012302,96993.0,96981.0,0.01040094]
[1736882407077,0.02312302,96991.0,96977.0,0.206233]
[1736882407522,0.02312302,96991.0,96982.0,0.001]
[1736882407733,0.02312302,96991.0,96977.0,0.206233]
[1736882408138,0.02312302,96991.0,96981.0,0.002]
[1736882408584,0.02312302,96991.0,96977.0,0.207233]
[1736882408759,0.023,96989.0,96982.0,0.003]
[1736882409121,0.023,96989.0,96977.0,0.206233]
[1736882409523,0.023,96989.0,96981.0,0.41345]
[1736882409730,0.023,96989.0,96984.0,0.206217]
[1736882409946,0.023,96989.0,96985.0,0.206217]
[1736882411130,0.024,96989.0,96985.0,0.206217]
[1736882411362,0.002,96989.0,96985.0,0.412434]
[1736882411591,0.002,96989.0,96986.0,0.00103102]
[1736882411788,0.001,96989.0,96986.0,0.00103102]
[1736882412024,0.002,96989.0,96986.0,0.00103102]
[1736882412441,0.001,96989.0,96987.0,0.0413465]
[1736882412659,0.04430345,96990.0,96987.0,0.2475595]
[1736882412867,0.04430345,96990.0,96987.0,0.4537725]
[1736882413118,0.04430345,96990.0,96987.0,0.412426]
[1736882414769,0.04430345,96990.0,96987.0,0.416426]
[1736882414998,0.04430345,96990.0,96987.0,0.417426]
[1736882415413,0.00012302,97001.0,96992.0,0.2062]
[1736882416041,0.00012302,97001.0,96990.0,0.12241408]
[1736882417007,0.00112302,97001.0,96990.0,0.12241408]
[1736882417210,0.00112302,97001.0,96991.0,0.206204]
[1736882417851,0.00012302,97001.0,96991.0,0.206204]
[1736882418229,0.023,97000.0,96991.0,0.206204]
[1736882418649,0.00012302,97001.0,96991.0,0.206204]
[1736882418866,0.00112302,97001.0,96991.0,0.206204]
[1736882419069,0.023,97000.0,96991.0,0.206204]
[1736882420235,0.00112302,97001.0,96991.0,0.206204]
[1736882420549,0.001,97000.0,96991.0,0.206204]
[1736882421170,0.00012302,97001.0,96991.0,0.206204]
[1736882421371,0.00112302,97001.0,96991.0,0.206204]
[1736882421566,0.023,97000.0,96991.0,0.206204]
[1736882422374,0.00112302,97001.0,96991.0,0.206204]
[1736882423400,0.00012302,97001.0,96991.0,0.206204]
[1736882423866,0.001,97000.0,96991.0,0.206204]
[1736882424300,0.00012302,97001.0,96991.0,0.206204]
[1736882424471,0.00112302,97001.0,96991.0,0.206204]
[1736882424672,0.023,97000.0,96991.0,0.206204]
[1736882424895,0.00112302,97001.0,96986.0,0.00103093]
[1736882425098,0.00012302,97001.0,96988.0,0.206209]
[1736882425293,0.023,97000.0,96988.0,0.20723993]
[1736882425501,0.023,97000.0,96985.0,0.0008534]
[1736882425502,0.00012302,96991.0,96985.0,0.0008534]
[1736882425708,0.00012302,96988.0,96985.0,0.0008534]
[1736882425925,0.00012302,96990.0,96985.0,0.0008534]
[1736882426135,0.00112302,97000.0,96989.0,0.206208]
[1736882426355,0.001,97000.0,96996.0,0.206193]
[1736882426776,0.00012302,97004.0,96997.0,0.206191]
[1736882426950,0.001,97001.0,96997.0,0.206191]
[1736882427364,0.001,97001.0,96993.0,0.206199]
[1736882427365,0.001,97001.0,96998.0,0.206188]
[1736882427564,0.09258504,97019.0,97006.0,0.288372]
[1736882427768,0.00191475,97021.0,97006.0,0.288372]
[1736882428007,0.00191475,97021.0,97006.0,0.206172]
[1736882428195,0.00191475,97021.0,97004.0,0.206176]
[1736882428389,0.00191495,97017.0,97004.0,0.206176]
[1736882428794,0.00012302,97014.0,97004.0,0.00049553]
[1736882429168,0.06730345,97007.0,97006.0,0.002]
[1736882429377,0.023,97006.0,97004.0,0.00049553]
[1736882429583,0.00012302,97005.0,97004.0,0.00049553]
[1736882429786,0.12734994,97005.0,97004.0,0.00049553]
[1736882431819,0.13182618,97005.0,97004.0,0.00049553]
[1736882432041,0.13482618,97005.0,97004.0,0.00049553]
[1736882432241,0.20551323,97005.0,97004.0,0.00049553]
[1736882432479,0.02859926,97005.0,97004.0,0.00049553]
[1736882433783,0.011,97005.0,97004.0,0.00149553]
[1736882434007,0.007,97005.0,97004.0,0.00049553]
[1736882434172,0.04430345,97007.0,97004.0,0.00049553]
[1736882434376,0.007,97005.0,97004.0,0.00149553]
[1736882434691,0.04430345,97007.0,97004.0,0.00049553]
[1736882435054,0.002,97005.0,97004.0,0.00049553]
[1736882435668,0.001,97005.0,97004.0,0.00049553]
[1736882436336,0.04530345,97007.0,97004.0,0.00049553]
[1736882436531,0.04630345,97007.0,97004.0,0.00049553]
[1736882437151,0.04530345,97007.0,97004.0,0.00049553]
[1736882437506,0.001,97005.0,97004.0,0.00049553]
[1736882437680,0.002,97005.0,97004.0,0.00049553]
[1736882437883,0.04430345,97007.0,97004.0,0.00049553]
[1736882438082,0.04530345,97007.0,97004.0,0.00049553]
[1736882438284,0.04630345,97007.0,97004.0,0.00049553]
[1736882438482,0.04530345,97007.0,97004.0,0.00049553]
[1736882438626,0.00444975,97006.0,97004.0,0.00049553]
[1736882438832,0.001,97005.0,97004.0,0.00049553]
[1736882439030,0.00444925,97005.0,97004.0,0.00134893]
[1736882439231,0.04530345,97007.0,97004.0,0.00134893]
[1736882439433,0.00444874,97005.0,97004.0,0.00134893]
[1736882439673,0.04530345,97007.0,97004.0,0.00134893]
[1736882440254,0.001,97005.0,97004.0,0.00134893]
[1736882440873,0.04530345,97007.0,97004.0,0.00134893]
[1736882441131,0.04630345,97007.0,97004.0,0.00134893]
[1736882441572,0.00444975,97006.0,97004.0,0.00134893]
[1736882442049,0.001,97005.0,97004.0,0.00134893]
[1736882442263,0.00444925,97005.0,97004.0,0.00134893]
[1736882442432,0.04530345,97007.0,97004.0,0.00134893]
[1736882442687,0.00444925,97005.0,97004.0,0.00134893]
[1736882442912,0.04530345,97007.0,97004.0,0.00134893]
[1736882443111,0.00544925,97005.0,97004.0,0.00134893]
[1736882443317,0.001,97005.0,97004.0,0.00134893]
[1736882443515,0.00544925,97005.0,97004.0,0.00134893]
[1736882443718,0.001,97005.0,97004.0,0.00134893]
[1736882444075,0.02512302,97005.0,97004.0,0.00134893]
[1736882444293,0.06489142,97005.0,97004.0,0.00134893]
[1736882444650,0.06389142,97005.0,97004.0,0.00134893]
[1736882445507,0.06489142,97005.0,97004.0,0.00134893]
[1736882446961,0.02957227,97005.0,97004.0,0.00134893]
[1736882454443,0.05087572,97005.0,97004.0,0.00134893]
[1736882457170,0.05605636,97005.0,97004.0,0.00134893]
[1736882457736,0.16028328,97005.0,97004.0,0.00134893]
[1736882457963,0.20234431,97005.0,97004.0,0.00134893]
[1736882458181,0.22534431,97005.0,97004.0,0.00134893]
[1736882458402,0.18328328,97005.0,97004.0,0.00134893]
[1736882460471,0.16028328,97005.0,97004.0,0.00134893]
[1736882460694,0.05593334,97005.0,97004.0,0.00134893]
[1736882460940,0.01162989,97005.0,97004.0,0.04997978]
[1736882461143,0.01162989,97005.0,97004.0,0.20302886]
[1736882461371,0.002,97005.0,97004.0,0.40713276]
[1736882461539,0.002,97005.0,97004.0,0.42637533]
[1736882461764,0.09253139,97014.0,97010.0,0.09987698]
[1736882461966,0.09253139,97014.0,97012.0,0.076]
[1736882462201,0.09253139,97014.0,97013.0,0.206157]
[1736882462458,0.00179173,97021.0,97013.0,0.206157]
[1736882462661,0.00179173,97021.0,97014.0,0.206155]
[1736882462837,0.00179173,97021.0,97014.0,0.41231]
[1736882464126,0.00179173,97021.0,97015.0,0.00103054]
[1736882464298,0.00179173,97021.0,97016.0,0.28508187]
[1736882465494,0.00179173,97021.0,97016.0,0.29008187]
[1736882476605,0.00179173,97021.0,97016.0,0.61778577]
[1736882476808,9.3e-07,97017.0,97016.0,0.61778577]
[1736882477246,6.6e-07,97021.0,97020.0,0.68191998]
[1736882477443,6.6e-07,97021.0,97020.0,0.86895096]
[1736882478524,6.6e-07,97021.0,97020.0,1.05344318]
[1736882479147,6.6e-07,97021.0,97020.0,1.00679977]
[1736882479528,6.6e-07,97021.0,97020.0,1.01979977]
[1736882479780,1e-07,97035.0,97034.0,0.68188998]
[1736882480078,1e-07,97035.0,97034.0,0.85296968]
[1736882480480,1e-07,97035.0,97034.0,2.35296968]
[1736882480921,1e-07,97035.0,97034.0,0.85296968]
[1736882481132,7.4e-07,97035.0,97034.0,0.85296968]
[1736882482076,7.4e-07,97035.0,97034.0,0.85696968]
[1736882482457,7.4e-07,97035.0,97034.0,1.07747273]
[1736882482671,4e-07,97089.0,97058.0,0.206062]
[1736882482880,0.00093522,97059.0,97058.0,0.38066475]
[1736882483087,0.00093522,97059.0,97058.0,0.37963477]
[1736882484318,0.00093522,97059.0,97058.0,0.40062687]
[1736882484737,8.162e-05,97059.0,97058.0,0.40062687]
[1736882484940,4e-07,97089.0,97078.0,0.433219]
[1736882484941,4e-07,97079.0,97078.0,0.433219]
[1736882485143,0.9896633,97100.0,97089.0,0.15]
[1736882485349,0.9896633,97100.0,97099.0,0.205975]
[1736882485554,0.98974492,97100.0,97099.0,0.205975]
[1736882485772,0.98974492,97100.0,97099.0,0.204975]
[1736882486942,0.98974492,97100.0,97099.0,0.207975]
[1736882487127,1.08873193,97100.0,97099.0,0.003]
[1736882487349,0.98974492,97100.0,97099.0,0.003]
[1736882487921,0.99074492,97100.0,97099.0,0.003]
[1736882492671,0.99064492,97100.0,97099.0,0.003]
[1736882496116,0.99076794,97100.0,97099.0,0.003]
[1736882497087,0.99076794,97100.0,97099.0,0.00479067]
[1736882497495,0.99162064,97100.0,97099.0,0.00479067]
[1736882502137,1.03592409,97100.0,97099.0,0.00479067]
[1736882504892,1.03592409,97100.0,97099.0,0.02586804]
[1736882505134,1.03592409,97100.0,97099.0,0.23184304]
[1736882505340,1.03592409,97100.0,97099.0,0.00479067]
[1736882510465,1.00592409,97100.0,97099.0,0.00479067]
[1736882512082,1.11015101,97100.0,97099.0,0.00479067]
[1736882512245,1.26195101,97100.0,97099.0,0.00479067]
[1736882513893,1.41195101,97100.0,97099.0,0.00479067]
[1736882514100,0.00012302,97067.0,97051.0,0.18323115]
[1736882514312,0.04430345,97075.0,97056.0,0.09161557]
[1736882514313,0.00012302,97058.0,97056.0,0.09161557]
[1736882514719,0.11014692,97066.0,97056.0,0.09161557]
[1736882514720,0.1533868,97057.0,97056.0,0.09161557]
[1736882515773,0.1533868,97057.0,97043.0,0.206092]
[1736882515999,0.1533868,97057.0,97048.0,8.162e-05]